fUST/lending_fUST_20250531
["ID","MTS","AMOUNT","RATE_DAILY","PERIOD"]
[363245436,1748644242331,-151.0,0.00018,2]
[363245437,1748644242341,-511.609206,0.00018,2]
[363245440,1748644242351,-511.609206,0.00018,2]
[363245442,1748644242360,-162.56,0.00018,2]
[363245443,1748644242369,-150747.71313063,0.00018,2]
[363245446,1748644242379,-39378.76177257,0.00018,2]
[363245447,1748644242388,-3193.73686345,0.00018,2]
[363245449,1748644242397,-18980.88103408,0.00018,2]
[363245451,1748644242407,-151.0,0.00018,2]
[363245453,1748644242416,-151.0,0.00018,2]
[363245456,1748644242427,-151.0,0.00018,2]
[363245458,1748644242436,-8457.18071398,0.00018072,2]
[363245459,1748644242445,-430.0,0.00018082,2]
[363245461,1748644242455,-430.0,0.00018082,2]
[363245463,1748644242463,-430.0,0.00018082,2]
[363245465,1748644242472,-1050.1,0.00018082,2]
[363245467,1748644242482,-430.0,0.00018082,2]
[363245469,1748644242491,-430.0,0.00018082,2]
[363245471,1748644242500,-1471.41,0.00018082,2]
[363245473,1748644242510,-633.35,0.00018082,2]
[363245475,1748644242523,-1515.85,0.00018082,2]
[363245477,1748644242531,-435.23,0.00018082,2]
[363245479,1748644242541,-578.28,0.00018082,2]
[363245481,1748644242550,-430.0,0.00018082,2]
[363245483,1748644242561,-454.27,0.00018082,2]
[363245485,1748644242570,-2116.33,0.00018082,2]
[363245487,1748644242579,-430.0,0.00018082,2]
[363245489,1748644242588,-430.0,0.00018082,2]
[363245491,1748644242598,-537.74,0.00018082,2]
[363245493,1748644242608,-430.0,0.00018082,2]
[363245495,1748644242617,-527.65,0.00018082,2]
[363245497,1748644242626,-864.74,0.00018082,2]
[363245499,1748644242636,-467.57,0.00018082,2]
[363245501,1748644242645,-2000.48,0.00018082,2]
[363245503,1748644242654,-2236.22,0.00018082,2]
[363245505,1748644242664,-450.11,0.00018082,2]
[363245507,1748644242673,-1769.54,0.00018082,2]
[363245509,1748644242682,-430.0,0.00018082,2]
[363245511,1748644242692,-638.96,0.00018082,2]
[363245513,1748644242701,-570.51,0.00018082,2]
[363245515,1748644242710,-2646.18,0.00018082,2]
[363245517,1748644242719,-692.05,0.00018082,2]
[363245519,1748644242728,-1249.32,0.00018082,2]
[363245521,1748644242738,-430.0,0.00018082,2]
[363245523,1748644242747,-1155.87,0.00018082,2]
[363245525,1748644242756,-1163.68,0.00018082,2]
[363245527,1748644242765,-1306.62,0.00018082,2]
[363245529,1748644242774,-430.0,0.00018082,2]
[363245531,1748644242783,-430.0,0.00018082,2]
[363245533,1748644242793,-430.0,0.00018082,2]
[363245535,1748644242802,-151.0,0.000181,2]
[363245537,1748644242811,-156.66125701,0.00018164,2]
[363245539,1748644242820,-1144.3770804,0.00018185,2]
[363245541,1748644242830,-2482.93651239,0.00018188,2]
[363245543,1748644242839,-5000.0,0.00018252,2]
[363245545,1748644242848,-539.61,0.0001828,2]
[363245547,1748644242857,-172.918,0.0001828,2]
[363245549,1748644242866,-151.0,0.000183,2]
[363245550,1748644242875,-2000.0,0.00018306,2]
[363245552,1748644242884,-2000.0,0.00018306,2]
[363245554,1748644242894,-150.13706857,0.00018335,2]
[363245556,1748644242903,-3000.0,0.00018342,2]
[363245558,1748644242913,-151.0,0.00018356,2]
[363245560,1748644242923,-151.0,0.00018356,2]
[363245562,1748644242932,-511.609206,0.00018356,2]
[363245564,1748644242942,-511.609206,0.00018356,2]
[363245567,1748644242951,-378.41083,0.00018356,2]
[363245568,1748644242960,-378.41083,0.00018356,2]
[363245571,1748644242970,-430.0,0.00018356,2]
[363245573,1748644242979,-430.0,0.00018356,2]
[363245575,1748644242988,-430.0,0.00018356,2]
[363245577,1748644242997,-1050.1,0.00018356,2]
[363245580,1748644243006,-430.0,0.00018356,2]
[363245581,1748644243015,-430.0,0.00018356,2]
[363245583,1748644243024,-1471.41,0.00018356,2]
[363245585,1748644243033,-633.35,0.00018356,2]
[363245588,1748644243043,-1515.85,0.00018356,2]
[363245589,1748644243052,-435.23,0.00018356,2]
[363245591,1748644243061,-578.28,0.00018356,2]
[363245593,1748644243071,-430.0,0.00018356,2]
[363245596,1748644243080,-454.27,0.00018356,2]
[363245598,1748644243089,-2116.33,0.00018356,2]
[363245600,1748644243098,-151.0,0.00018356,2]
[363245602,1748644243107,-430.0,0.00018356,2]
[363245604,1748644243116,-151.0,0.00018356,2]
[363245606,1748644243126,-430.0,0.00018356,2]
[363245608,1748644243135,-537.74,0.00018356,2]
[363245610,1748644243145,-430.0,0.00018356,2]
[363245612,1748644243155,-527.65,0.00018356,2]
[363245615,1748644243164,-864.74,0.00018356,2]
[363245616,1748644243176,-467.57,0.00018356,2]
[363245619,1748644243186,-2000.48,0.00018356,2]
[363245620,1748644243196,-2236.22,0.00018356,2]
[363245622,1748644243205,-450.11,0.00018356,2]
[363245624,1748644243215,-1769.54,0.00018356,2]
[363245638,1748644243340,-151.0,0.00018356,2]
[363245640,1748644243350,-430.0,0.00018356,2]
[363245642,1748644243360,-638.96,0.00018356,2]
[363245644,1748644243369,-570.51,0.00018356,2]
[363245646,1748644243379,-2646.18,0.00018356,2]
[363245648,1748644243389,-692.05,0.00018356,2]
[363245650,1748644243398,-1249.32,0.00018356,2]
[363245652,1748644243407,-151.0,0.00018356,2]
[363245654,1748644243419,-430.0,0.00018356,2]
[363245656,1748644243430,-1155.87,0.00018356,2]
[363245658,1748644243439,-1163.68,0.00018356,2]
[363245660,1748644243448,-1306.62,0.00018356,2]
[363245662,1748644243458,-430.0,0.00018356,2]
[363245664,1748644243467,-151.0,0.00018356,2]
[363245667,1748644243477,-151.0,0.00018356,2]
[363245669,1748644243486,-430.0,0.00018356,2]
[363245670,1748644243495,-430.0,0.00018356,2]
[363245672,1748644243505,-8457.18071398,0.00018383,2]
[363245674,1748644243517,-591.43959293,0.00018399,2]
[363245677,1748644243527,-156.66125701,0.00018411,2]
[363245679,1748644243537,-2387.658062,0.00018424,2]
[363245681,1748644243546,-151.0,0.000185,2]
[363245683,1748644243556,-215.0738,0.00018525,2]
[363245685,1748644243567,-500.0,0.00018555,2]
[363245687,1748644243576,-24229.85893433,0.00018622,2]
[363245689,1748644243586,-16628.62716181,0.0001863,3]
[363245691,1748644243597,-88225.06185085,0.0001863,2]
[363246186,1748644248859,-272.83057873,0.00014396,2]
[363246535,1748644488926,-175.29,0.00014152,2]
[363246537,1748644548854,-25.49402831,0.00014152,2]
[363246538,1748644548882,-141.84785025,0.00014252,2]
[363246539,1748644578951,-155.3670742,0.00014252,2]
[363246540,1748644582243,-277.44180626,0.00014252,2]
[363246541,1748644584345,-515.08455846,0.00014252,2]
[363246542,1748644585874,-153.56906213,0.00014252,2]
[363246543,1748644590569,-177.74579025,0.00014252,2]
[363246544,1748644592234,-413.29125043,0.00014252,2]
[363246545,1748644595515,-262.40209256,0.00014252,2]
[363246546,1748644598314,-226.38078674,0.00014252,2]
[363246547,1748644600994,-335.09127445,0.00014252,2]
[363246548,1748644605375,-236.55050028,0.00014252,2]
[363246549,1748644606819,-282.52145698,0.00014252,2]
[363246550,1748644608975,-207.70455589,0.00014252,2]
[363246551,1748644611275,-231.03253923,0.00014252,2]
[363246552,1748644613552,-162.77430179,0.00014252,2]
[363246553,1748644614893,5000.0,0.000141,2]
[363246555,1748644817262,5000.0,0.000141,2]
[363246556,1748645020506,5000.0,0.000141,2]
[363246663,1748645432764,-5000.0,0.00014625,2]
[363246665,1748645432774,-164.90024098,0.00014773,2]
[363246667,1748645432783,-709.4058527,0.00014873,2]
[363246669,1748645432792,-1200.0,0.000151,2]
[363246671,1748645432802,-300.0,0.00015101,2]
[363246673,1748645432811,-300.0,0.00015101,2]
[363246675,1748645432820,-300.0,0.00015101,2]
[363246677,1748645432829,-500.0,0.00015102,2]
[363246679,1748645432839,-307.10105232,0.00015102,2]
[363246681,1748645432848,-500.0,0.00015102,2]
[363246683,1748645432858,-192.75410443,0.00015102,2]
[363246685,1748645432867,-500.0,0.00015102,2]
[363246687,1748645432876,-500.0,0.00015102,2]
[363246689,1748645432887,-500.0,0.00015102,2]
[363246691,1748645432898,-473.6587373,0.00015102,2]
[363246693,1748645432907,-24900.0,0.00015103,2]
[363246695,1748645432917,-2900.0,0.00015876,2]
[363246697,1748645432926,-300.0,0.00016433,2]
[363246699,1748645432936,-500.0,0.00016436,2]
[363246701,1748645432945,-500.0,0.00016436,2]
[363246703,1748645432955,-555.64931773,0.00016436,2]
[363246705,1748645432964,-500.0,0.00016436,2]
[363246707,1748645432974,-500.0,0.00016436,2]
[363246709,1748645432983,-559.44628789,0.00016436,2]
[363246711,1748645432992,-500.0,0.00016436,2]
[363246713,1748645433001,-500.0,0.00016436,2]
[363246715,1748645433011,-500.0,0.00016436,2]
[363246717,1748645433020,-500.0,0.00016436,2]
[363246719,1748645433029,-500.0,0.00016436,2]
[363246721,1748645433042,-500.0,0.00016436,2]
[363246723,1748645433052,-907.03059395,0.00016436,2]
[363246725,1748645433062,-907.03059395,0.00016436,2]
[363246727,1748645433072,-907.03059395,0.00016436,2]
[363246728,1748645433083,-907.03059395,0.00016436,2]
[363246730,1748645433093,-907.03059395,0.00016436,2]
[363246732,1748645433103,-907.03059395,0.00016436,2]
[363246734,1748645433114,-907.03059395,0.00016436,2]
[363246736,1748645433124,-907.03059395,0.00016436,2]
[363246739,1748645433136,-984.77607344,0.00016436,2]
[363246741,1748645433147,-984.77607344,0.00016436,2]
[363246743,1748645433156,-984.77607344,0.00016436,2]
[363246744,1748645433166,-984.77607344,0.00016436,2]
[363246747,1748645433176,-984.77607344,0.00016436,2]
[363246749,1748645433187,-1098.80277667,0.00016436,2]
[363246751,1748645433196,-330.90097096,0.00016438,2]
[363246752,1748645433206,-451.44192296,0.00016438,2]
[363246754,1748645433215,-450.68212147,0.00016438,2]
[363246756,1748645433225,-430.0,0.00016438,2]
[363246759,1748645433235,-173.86117326,0.00016438,2]
[363246760,1748645433245,-430.0,0.00016438,2]
[363246762,1748645433255,-496.2,0.00016438,2]
[363246764,1748645433264,-430.0,0.00016438,2]
[363246767,1748645433274,-330.0,0.00016438,2]
[363246769,1748645433284,-430.0,0.00016438,2]
[363246771,1748645433293,-430.0,0.00016438,2]
[363246772,1748645433303,-430.0,0.00016438,2]
[363246774,1748645433312,-430.0,0.00016438,2]
[363246776,1748645433322,-430.0,0.00016438,2]
[363246777,1748645433333,-314.15,0.00016438,2]
[363246778,1748645433343,-430.0,0.00016438,2]
[363246779,1748645433352,-401.99410861,0.00016438,2]
[363246780,1748645433362,-490.52,0.00016438,2]
[363246781,1748645433371,-430.0,0.00016438,2]
[363246782,1748645433380,-430.0,0.00016438,2]
[363246783,1748645433392,-473.54694317,0.00016438,2]
[363246784,1748645433402,-430.0,0.00016438,2]
[363246785,1748645433412,-430.0,0.00016438,2]
[363246786,1748645433421,-430.0,0.00016438,2]
[363246787,1748645433431,-543.22,0.00016438,2]
[363246788,1748645433441,-430.0,0.00016438,2]
[363246789,1748645433450,-430.0,0.00016438,2]
[363246790,1748645433459,-430.0,0.00016438,2]
[363246791,1748645433469,-430.0,0.00016438,2]
[363246792,1748645433478,-1089.93,0.00016438,2]
[363246793,1748645433487,-430.0,0.00016438,2]
[363246794,1748645433497,-430.0,0.00016438,2]
[363246795,1748645433506,-430.0,0.00016438,2]
[363246796,1748645433515,-352.08705978,0.00016438,2]
[363246797,1748645433525,-430.0,0.00016438,2]
[363246798,1748645433534,-1534.53,0.00016438,2]
[363246799,1748645433543,-1156.02,0.00016438,2]
[363246800,1748645433553,-430.0,0.00016438,2]
[363246801,1748645433563,-1490.34,0.00016438,2]
[363246802,1748645433572,-430.0,0.00016438,2]
[363246803,1748645433583,-500.0,0.00016438,2]
[363246804,1748645433592,-554.8,0.00016438,2]
[363246805,1748645433602,-451.89,0.00016438,2]
[363246806,1748645433611,-2135.86,0.00016438,2]
[363246807,1748645433622,-430.0,0.00016438,2]
[363246809,1748645433631,-430.0,0.00016438,2]
[363246811,1748645433642,-430.0,0.00016438,2]
[363246813,1748645433652,-430.0,0.00016438,2]
[363246815,1748645433662,-430.0,0.00016438,2]
[363246817,1748645433671,-430.0,0.00016438,2]
[363246819,1748645433681,-613.05,0.00016438,2]
[363246821,1748645433690,-430.0,0.00016438,2]
[363246823,1748645433699,-430.0,0.00016438,2]
[363246825,1748645433709,-430.0,0.00016438,2]
[363246827,1748645433719,-2185.34,0.00016438,2]
[363246829,1748645433728,-470.0,0.00016438,2]
[363246831,1748645433738,-622.43,0.00016438,2]
[363246833,1748645433747,-430.0,0.00016438,2]
[363246835,1748645433757,-430.0,0.00016438,2]
[363246837,1748645433767,-470.0,0.00016438,2]
[363246839,1748645433776,-457.0,0.00016438,2]
[363246841,1748645433786,-430.0,0.00016438,2]
[363246843,1748645433796,-2162.26,0.00016438,2]
[363246845,1748645433807,-510.64,0.00016438,2]
[363246846,1748645433816,-430.0,0.00016438,2]
[363246847,1748645433826,-430.0,0.00016438,2]
[363246848,1748645433836,-369.81651454,0.00016438,2]
[363246849,1748645433846,-1735.21,0.00016438,2]
[363246850,1748645433856,-436.04,0.00016438,2]
[363246851,1748645433866,-567.44,0.00016438,2]
[363246852,1748645433875,-511.92273979,0.00016438,2]
[363246853,1748645433886,-897.66,0.00016438,2]
[363246854,1748645433895,-637.91,0.00016438,2]
[363246855,1748645433905,-430.0,0.00016438,2]
[363246856,1748645433914,-430.0,0.00016438,2]
[363246857,1748645433923,-430.0,0.00016438,2]
[363246858,1748645433932,-430.0,0.00016438,2]
[363246859,1748645433941,-430.0,0.00016438,2]
[363246860,1748645433950,-430.0,0.00016438,2]
[363246861,1748645433960,-630.27,0.00016438,2]
[363246862,1748645433969,-430.0,0.00016438,2]
[363246863,1748645433978,-442.58782504,0.00016438,2]
[363246864,1748645433988,-430.0,0.00016438,2]
[363246865,1748645433998,-430.0,0.00016438,2]
[363246866,1748645434007,-343.06438386,0.00016438,2]
[363246868,1748645434016,-962.3,0.00016438,2]
[363246870,1748645434027,-365.61,0.00016438,2]
[363246872,1748645434036,-430.0,0.00016438,2]
[363246874,1748645434046,-1198.76,0.00016438,2]
[363246876,1748645434056,-1303.21,0.00016438,2]
[363246878,1748645434065,-1709.17,0.00016438,2]
[363246880,1748645434075,-430.0,0.00016438,2]
[363246882,1748645434085,-339.91204096,0.00016438,2]
[363246884,1748645434094,-430.0,0.00016438,2]
[363246885,1748645434103,-304.53974767,0.00016438,2]
[363246887,1748645434113,-420.0,0.00016525,2]
[363246890,1748645434124,-310.41535562,0.00016712,2]
[363246892,1748645434133,-430.0,0.00016712,2]
[363246894,1748645434144,-430.0,0.00016712,2]
[363246895,1748645434153,-543.22,0.00016712,2]
[363246898,1748645434162,-430.0,0.00016712,2]
[363246900,1748645434171,-1089.93,0.00016712,2]
[363246902,1748645434180,-430.0,0.00016712,2]
[363246904,1748645434190,-430.0,0.00016712,2]
[363246906,1748645434199,-1534.53,0.00016712,2]
[363246907,1748645434209,-1156.02,0.00016712,2]
[363246910,1748645434219,-1490.34,0.00016712,2]
[363246912,1748645434230,-430.0,0.00016712,2]
[363246914,1748645434239,-451.89,0.00016712,2]
[363246916,1748645434247,-2135.86,0.00016712,2]
[363246917,1748645434257,-430.0,0.00016712,2]
[363246919,1748645434266,-430.0,0.00016712,2]
[363246921,1748645434275,-315.07,0.00016712,2]
[363246923,1748645434283,-430.0,0.00016712,2]
[363246925,1748645434292,-430.0,0.00016712,2]
[363246927,1748645434301,-430.0,0.00016712,2]
[363246929,1748645434311,-613.05,0.00016712,2]
[363246931,1748645434320,-430.0,0.00016712,2]
[363246933,1748645434329,-430.0,0.00016712,2]
[363246935,1748645434338,-430.0,0.00016712,2]
[363246937,1748645434347,-2185.34,0.00016712,2]
[363246939,1748645434357,-622.43,0.00016712,2]
[363246941,1748645434366,-430.0,0.00016712,2]
[363246943,1748645434375,-457.0,0.00016712,2]
[363246945,1748645434385,-2162.26,0.00016712,2]
[363246947,1748645434396,-510.64,0.00016712,2]
[363246949,1748645434405,-1735.21,0.00016712,2]
[363246951,1748645434415,-436.04,0.00016712,2]
[363246953,1748645434424,-567.44,0.00016712,2]
[363246955,1748645434433,-897.66,0.00016712,2]
[363246957,1748645434442,-637.91,0.00016712,2]
[363246959,1748645434451,-171.0,0.00016712,2]
[363246961,1748645434461,-430.0,0.00016712,2]
[363246963,1748645434470,-226.42216501,0.00016712,2]
[363246965,1748645434479,-430.0,0.00016712,2]
[363246967,1748645434488,-430.0,0.00016712,2]
[363246969,1748645434497,-430.0,0.00016712,2]
[363246971,1748645434506,-630.27,0.00016712,2]
[363246973,1748645434516,-430.0,0.00016712,2]
[363246975,1748645434525,-430.0,0.00016712,2]
[363246977,1748645434535,-430.0,0.00016712,2]
[363246979,1748645434544,-962.3,0.00016712,2]
[363246981,1748645434553,-430.0,0.00016712,2]
[363246983,1748645434562,-1198.76,0.00016712,2]
[363246985,1748645434571,-1303.21,0.00016712,2]
[363246987,1748645434581,-1709.17,0.00016712,2]
[363246989,1748645434590,-430.0,0.00016712,2]
[363246991,1748645434599,-2924.97103168,0.00016886,2]
[363246993,1748645434608,-430.0,0.00016986,2]
[363246995,1748645434617,-543.22,0.00016986,2]
[363246997,1748645434626,-430.0,0.00016986,2]
[363246999,1748645434637,-1089.93,0.00016986,2]
[363247001,1748645434646,-430.0,0.00016986,2]
[363247003,1748645434655,-176.82,0.00016986,2]
[363247004,1748645434664,-1534.53,0.00016986,2]
[363247007,1748645434674,-1156.02,0.00016986,2]
[363247008,1748645434685,-1490.34,0.00016986,2]
[363247010,1748645434695,-451.89,0.00016986,2]
[363247012,1748645434704,-2135.86,0.00016986,2]
[363247014,1748645434713,-430.0,0.00016986,2]
[363247016,1748645434722,-430.0,0.00016986,2]
[363247018,1748645434733,-430.0,0.00016986,2]
[363247021,1748645434742,-430.0,0.00016986,2]
[363247023,1748645434752,-430.0,0.00016986,2]
[363247025,1748645434761,-613.05,0.00016986,2]
[363247026,1748645434770,-430.0,0.00016986,2]
[363247028,1748645434780,-430.0,0.00016986,2]
[363247030,1748645434790,-430.0,0.00016986,2]
[363247032,1748645434799,-2185.34,0.00016986,2]
[363247034,1748645434809,-622.43,0.00016986,2]
[363247036,1748645434818,-430.0,0.00016986,2]
[363247038,1748645434827,-457.0,0.00016986,2]
[363247040,1748645434836,-2162.26,0.00016986,2]
[363247042,1748645434846,-510.64,0.00016986,2]
[363247044,1748645434855,-1735.21,0.00016986,2]
[363247046,1748645434865,-436.04,0.00016986,2]
[363247049,1748645434876,-567.44,0.00016986,2]
[363247050,1748645434886,-897.66,0.00016986,2]
[363247052,1748645434896,-637.91,0.00016986,2]
[363247055,1748645434905,-430.0,0.00016986,2]
[363247057,1748645434914,-430.0,0.00016986,2]
[363247059,1748645434924,-430.0,0.00016986,2]
[363247061,1748645434933,-630.27,0.00016986,2]
[363247063,1748645434943,-430.0,0.00016986,2]
[363247065,1748645434953,-414.63364122,0.00016986,2]
[363247067,1748645434961,-430.0,0.00016986,2]
[363247068,1748645434971,-962.3,0.00016986,2]
[363247069,1748645434980,-300.19594758,0.00016986,2]
[363247070,1748645434989,-1198.76,0.00016986,2]
[363247071,1748645434999,-1303.21,0.00016986,2]
[363247072,1748645435008,-1709.17,0.00016986,2]
[363247073,1748645435017,-430.0,0.00016986,2]
[363247074,1748645435026,-500.0,0.00017058,2]
[363247075,1748645435036,-500.0,0.00017058,2]
[363247076,1748645435046,-500.0,0.00017082,2]
[363247077,1748645435058,-500.0,0.00017082,2]
[363247078,1748645435067,-500.0,0.00017082,2]
[363247080,1748645435076,-500.0,0.00017082,2]
[363247082,1748645435087,-500.0,0.00017082,2]
[363247084,1748645435096,-500.0,0.00017082,2]
[363247086,1748645435106,-500.0,0.00017082,2]
[363247088,1748645435115,-500.0,0.00017082,2]
[363247090,1748645435126,-500.0,0.00017082,2]
[363247092,1748645435137,-500.0,0.00017082,2]
[363247094,1748645435146,-7390.4113639,0.000171,2]
[363247096,1748645435155,-7390.41136368,0.000171,2]
[363247098,1748645435164,-7390.41136368,0.000171,2]
[363247099,1748645435173,-7390.41136368,0.000171,2]
[363247101,1748645435182,-437.28126419,0.00017133,2]
[363247103,1748645435191,-550.77853482,0.0001714,2]
[363247105,1748645435201,-500.0,0.0001714,2]
[363247106,1748645435211,-7390.41136368,0.00017141,2]
[363247108,1748645435221,-160.0,0.00017147,2]
[363247109,1748645435231,-12663.11115519,0.00017147,2]
[363247111,1748645435239,-160.0,0.00017147,2]
[363247112,1748645435249,-212.7380601,0.00017147,2]
[363247114,1748645435258,-842.5625,0.00017147,2]
[363247115,1748645435268,-160.0,0.00017147,2]
[363247117,1748645435278,-160.0,0.00017147,2]
[363247119,1748645435287,-423.39538199,0.00017147,2]
[363247120,1748645435296,-229.30959854,0.00017147,2]
[363247122,1748645435305,-314.81381568,0.00017147,2]
[363247123,1748645435314,-160.0,0.00017147,2]
[363247124,1748645435324,-160.0,0.00017147,2]
[363247126,1748645435334,-160.0,0.00017152,2]
[363247128,1748645435344,-207.4,0.00017156,2]
[363247129,1748645435353,-300.0,0.00017156,2]
[363247131,1748645435362,-300.0,0.00017156,2]
[363247132,1748645435371,-300.0,0.00017156,2]
[363247134,1748645435381,-300.0,0.00017156,2]
[363247135,1748645435393,-300.0,0.00017156,2]
[363247137,1748645435403,-300.0,0.00017156,2]
[363247138,1748645435412,-300.0,0.00017156,2]
[363247140,1748645435421,-300.0,0.00017156,2]
[363247141,1748645435432,-300.0,0.00017156,2]
[363247143,1748645435443,-300.0,0.00017156,2]
[363247145,1748645435453,-300.0,0.00017156,2]
[363247146,1748645435462,-300.0,0.00017156,2]
[363247148,1748645435472,-5000.0,0.00017156,2]
[363247149,1748645435481,-300.0,0.00017156,2]
[363247151,1748645435491,-300.0,0.00017156,2]
[363247152,1748645435500,-300.0,0.00017156,2]
[363247154,1748645435509,-2900.0,0.00017246,2]
[363247155,1748645435519,-430.0,0.0001726,2]
[363247157,1748645435528,-543.22,0.0001726,2]
[363247158,1748645435537,-430.0,0.0001726,2]
[363247160,1748645435547,-1089.93,0.0001726,2]
[363247162,1748645435557,-430.0,0.0001726,2]
[363247163,1748645435566,-1534.53,0.0001726,2]
[363247165,1748645435575,-1156.02,0.0001726,2]
[363247167,1748645435584,-1490.34,0.0001726,2]
[363247168,1748645435594,-451.89,0.0001726,2]
[363247170,1748645435609,-2135.86,0.0001726,2]
[363247180,1748645435761,-430.0,0.0001726,2]
[363247181,1748645435771,-430.0,0.0001726,2]
[363247183,1748645435782,-430.0,0.0001726,2]
[363247185,1748645435791,-430.0,0.0001726,2]
[363247186,1748645435801,-613.05,0.0001726,2]
[363247188,1748645435811,-430.0,0.0001726,2]
[363247190,1748645435820,-430.0,0.0001726,2]
[363247191,1748645435829,-2185.34,0.0001726,2]
[363247193,1748645435839,-622.43,0.0001726,2]
[363247194,1748645435849,-430.0,0.0001726,2]
[363247196,1748645435858,-457.0,0.0001726,2]
[363247198,1748645435867,-2162.26,0.0001726,2]
[363247199,1748645435877,-510.64,0.0001726,2]
[363247201,1748645435888,-1735.21,0.0001726,2]
[363247202,1748645435898,-436.04,0.0001726,2]
[363247204,1748645435908,-567.44,0.0001726,2]
[363247206,1748645435917,-897.66,0.0001726,2]
[363247207,1748645435926,-637.91,0.0001726,2]
[363247209,1748645435935,-430.0,0.0001726,2]
[363247211,1748645435945,-430.0,0.0001726,2]
[363247212,1748645435955,-630.27,0.0001726,2]
[363247214,1748645435964,-282.52692179,0.0001726,2]
[363247215,1748645435973,-430.0,0.0001726,2]
[363247217,1748645435983,-962.3,0.0001726,2]
[363247219,1748645435992,-1198.76,0.0001726,2]
[363247220,1748645436002,-1303.21,0.0001726,2]
[363247222,1748645436012,-1709.17,0.0001726,2]
[363247224,1748645436022,-430.0,0.0001726,2]
[363247225,1748645436031,-352.4972578,0.00017363,2]
[363247227,1748645436041,-2924.97103164,0.00017383,2]
[363247228,1748645436053,-7390.41136368,0.00017452,2]
[363247230,1748645436062,-430.0,0.00017534,2]
[363247232,1748645436071,-430.0,0.00017534,2]
[363247233,1748645436081,-1089.93,0.00017534,2]
[363247235,1748645436091,-430.0,0.00017534,2]
[363247236,1748645436100,-1534.53,0.00017534,2]
[363247238,1748645436110,-1156.02,0.00017534,2]
[363247240,1748645436120,-1490.34,0.00017534,2]
[363247241,1748645436131,-451.89,0.00017534,2]
[363247243,1748645436143,-2135.86,0.00017534,2]
[363247245,1748645436152,-430.0,0.00017534,2]
[363247246,1748645436161,-430.0,0.00017534,2]
[363247248,1748645436170,-430.0,0.00017534,2]
[363247250,1748645436179,-430.0,0.00017534,2]
[363247251,1748645436189,-613.05,0.00017534,2]
[363247253,1748645436199,-430.0,0.00017534,2]
[363247254,1748645436208,-2185.34,0.00017534,2]
[363247256,1748645436217,-622.43,0.00017534,2]
[363247258,1748645436227,-430.0,0.00017534,2]
[363247259,1748645436236,-457.0,0.00017534,2]
[363247261,1748645436245,-2162.26,0.00017534,2]
[363247262,1748645436255,-510.64,0.00017534,2]
[363247263,1748645436264,-1735.21,0.00017534,2]
[363247264,1748645436274,-436.04,0.00017534,2]
[363247265,1748645436283,-567.44,0.00017534,2]
[363247266,1748645436294,-897.66,0.00017534,2]
[363247267,1748645436303,-637.91,0.00017534,2]
[363247268,1748645436312,-430.0,0.00017534,2]
[363247269,1748645436322,-430.0,0.00017534,2]
[363247270,1748645436332,-630.27,0.00017534,2]